[Event "*** SCC Grand Prix: Titled Tuesday Blitz"]
[Site "Chess.com"]
[Date "2020.06.02"]
[Round "1"]
[White "elohunter1999"]
[Black "m-garcett"]
[Result "1-0"]
[WhiteElo "2494"]
[BlackElo "2051"]
[TimeControl "180+1"]
[EndTime "10:06:35 PDT"]
[Termination "elohunter1999 won by resignation"]

1. e4 {[%clk 0:03:00.8]} 1... c5 {[%clk 0:02:56.9]} 2. Nf3 {[%clk 0:03:00.3]}
2... d6 {[%clk 0:02:52.9]} 3. d4 {[%clk 0:03:00.2]} 3... cxd4 {[%clk 0:02:53.1]}
4. Nxd4 {[%clk 0:03:01.1]} 4... Nf6 {[%clk 0:02:53.3]} 5. Nc3 {[%clk 0:03:01.7]}
5... a6 {[%clk 0:02:53.1]} 6. Be3 {[%clk 0:03:01.1]} 6... e6 {[%clk 0:02:52.4]}
7. f3 {[%clk 0:03:00.6]} 7... b5 {[%clk 0:02:50.5]} 8. Qd2 {[%clk 0:03:00.2]}
8... Nbd7 {[%clk 0:02:46.3]} 9. g4 {[%clk 0:02:48.4]} 9... Nb6 {[%clk
0:02:43.4]} 10. a4 {[%clk 0:02:42.3]} 10... b4 {[%clk 0:02:32.5]} 11. Na2 {[%clk
0:02:38.4]} 11... a5 {[%clk 0:02:24.6]} 12. c3 {[%clk 0:02:38.7]} 12... bxc3
{[%clk 0:02:20.1]} 13. Nxc3 {[%clk 0:02:38.2]} 13... Nfd7 {[%clk 0:02:19.4]} 14.
Bb5 {[%clk 0:02:31.4]} 14... Bb7 {[%clk 0:02:07.4]} 15. O-O {[%clk 0:02:06]}
15... Rc8 {[%clk 0:01:52.4]} 16. Qf2 {[%clk 0:02:04.1]} 16... Be7 {[%clk
0:01:50.7]} 17. Rad1 {[%clk 0:02:01.8]} 17... O-O {[%clk 0:01:48.6]} 18. Qg3
{[%clk 0:01:53.8]} 18... Ne5 {[%clk 0:01:39.7]} 19. f4 {[%clk 0:01:48.8]} 19...
Nec4 {[%clk 0:01:18.5]} 20. Bc1 {[%clk 0:01:48.6]} 20... Bh4 {[%clk 0:00:56]}
21. Qh3 {[%clk 0:01:45.8]} 21... Bf6 {[%clk 0:00:30.7]} 22. g5 {[%clk
0:01:45.3]} 22... Bxd4+ {[%clk 0:00:27]} 23. Rxd4 {[%clk 0:01:46.2]} 23... Qc7
{[%clk 0:00:25.4]} 24. Rd3 {[%clk 0:00:53.4]} 24... Qc5+ {[%clk 0:00:24.5]} 25.
Rf2 {[%clk 0:00:53.3]} 25... e5 {[%clk 0:00:18.7]} 26. f5 {[%clk 0:00:49.2]}
26... d5 {[%clk 0:00:16.4]} 27. Qh4 {[%clk 0:00:45.1]} 27... dxe4 {[%clk
0:00:12.9]} 28. Rh3 {[%clk 0:00:43.5]} 28... h6 {[%clk 0:00:11.7]} 29. gxh6
{[%clk 0:00:43.3]} 29... g6 {[%clk 0:00:10.1]} 30. Qf6 {[%clk 0:00:41]} 1-0

[Event "*** SCC Grand Prix: Titled Tuesday Blitz"]
[Site "Chess.com"]
[Date "2020.06.02"]
[Round "1"]
[White "Reality-Stone"]
[Black "picturesquecheck"]
[Result "0-1"]
[WhiteElo "2493"]
[BlackElo "2126"]
[TimeControl "180+1"]
[EndTime "10:06:36 PDT"]
[Termination "picturesquecheck won by checkmate"]

1. d4 {[%clk 0:03:00.7]} 1... Nf6 {[%clk 0:02:57.3]} 2. c4 {[%clk 0:03:00.4]}
2... e6 {[%clk 0:02:57.2]} 3. g3 {[%clk 0:03:00.4]} 3... d5 {[%clk 0:02:56.8]}
4. Nf3 {[%clk 0:03:00.6]} 4... Bb4+ {[%clk 0:02:55.9]} 5. Bd2 {[%clk 0:03:00.5]}
5... Be7 {[%clk 0:02:55.4]} 6. Bg2 {[%clk 0:03:00.8]} 6... O-O {[%clk
0:02:55.3]} 7. O-O {[%clk 0:03:00.8]} 7... b6 {[%clk 0:02:55.1]} 8. cxd5 {[%clk
0:02:59.9]} 8... exd5 {[%clk 0:02:54.8]} 9. Nc3 {[%clk 0:02:59.9]} 9... Bb7
{[%clk 0:02:54]} 10. Bf4 {[%clk 0:03:00.1]} 10... Nbd7 {[%clk 0:02:53.9]} 11.
Qb3 {[%clk 0:03:00.1]} 11... c5 {[%clk 0:02:52.2]} 12. Rfd1 {[%clk 0:02:57.9]}
12... Rc8 {[%clk 0:02:41.9]} 13. Ne5 {[%clk 0:02:56.7]} 13... cxd4 {[%clk
0:02:36]} 14. Rxd4 {[%clk 0:02:52.5]} 14... Nc5 {[%clk 0:02:35.4]} 15. Qd1
{[%clk 0:02:44.9]} 15... Ne6 {[%clk 0:02:30]} 16. Rd3 {[%clk 0:02:43.1]} 16...
Nxf4 {[%clk 0:02:11.6]} 17. gxf4 {[%clk 0:02:44]} 17... Bc5 {[%clk 0:02:01]} 18.
e3 {[%clk 0:02:25.5]} 18... Qe7 {[%clk 0:01:42.4]} 19. Kh1 {[%clk 0:02:19.9]}
19... Rfd8 {[%clk 0:01:41]} 20. Nb5 {[%clk 0:02:10.7]} 20... Ne4 {[%clk
0:01:32.2]} 21. Qf3 {[%clk 0:02:03.7]} 21... f6 {[%clk 0:01:25.9]} 22. Ng4
{[%clk 0:01:52.1]} 22... h5 {[%clk 0:01:24.1]} 23. Nh6+ {[%clk 0:01:24.3]} 23...
gxh6 {[%clk 0:01:22.9]} 24. Rg1 {[%clk 0:01:23.7]} 24... Kh7 {[%clk 0:01:20.3]}
25. Bh3 {[%clk 0:01:04.7]} 25... d4 {[%clk 0:01:16.8]} 26. Rg2 {[%clk
0:00:05.9]} 26... dxe3 {[%clk 0:01:11.2]} 27. Bf5+ {[%clk 0:00:05.2]} 27... Kh8
{[%clk 0:01:08.4]} 28. Qxh5 {[%clk 0:00:06.1]} 28... Nxf2+ {[%clk 0:01:07.1]}
29. Kg1 {[%clk 0:00:06.6]} 29... Nh3+ {[%clk 0:00:49.3]} 30. Qxh3 {[%clk
0:00:05]} 30... e2+ {[%clk 0:00:47.6]} 31. Re3 {[%clk 0:00:04.2]} 31... e1=Q#
{[%clk 0:00:46.6]} 0-1

[Event "*** SCC Grand Prix: Titled Tuesday Blitz"]
[Site "Chess.com"]
[Date "2020.06.02"]
[Round "1"]
[White "Salem-AR"]
[Black "Tsyhanchuk_Stanislav"]
[Result "1-0"]
[WhiteElo "3048"]
[BlackElo "2455"]
[TimeControl "180+1"]
[EndTime "10:06:37 PDT"]
[Termination "Salem-AR won on time"]

1. Nf3 {[%clk 0:02:59.1]} 1... c5 {[%clk 0:02:57.6]} 2. g3 {[%clk 0:02:58.9]}
2... Nf6 {[%clk 0:02:53.3]} 3. Bg2 {[%clk 0:02:58.6]} 3... g6 {[%clk 0:02:52.9]}
4. b3 {[%clk 0:02:58.6]} 4... Bg7 {[%clk 0:02:52.3]} 5. Bb2 {[%clk 0:02:59.2]}
5... O-O {[%clk 0:02:52]} 6. c4 {[%clk 0:02:59.5]} 6... Nc6 {[%clk 0:02:48.2]}
7. O-O {[%clk 0:02:59.3]} 7... e6 {[%clk 0:02:41.2]} 8. d4 {[%clk 0:02:54.9]}
8... cxd4 {[%clk 0:02:28.1]} 9. Nxd4 {[%clk 0:02:55.8]} 9... d5 {[%clk
0:02:26.9]} 10. cxd5 {[%clk 0:02:52.7]} 10... exd5 {[%clk 0:02:23.2]} 11. Nxc6
{[%clk 0:02:49]} 11... bxc6 {[%clk 0:02:21.9]} 12. Nc3 {[%clk 0:02:49.9]} 12...
Re8 {[%clk 0:02:16.5]} 13. Rc1 {[%clk 0:02:46.5]} 13... Bf5 {[%clk 0:02:04.9]}
14. Na4 {[%clk 0:02:45]} 14... Rc8 {[%clk 0:02:00.1]} 15. e3 {[%clk 0:02:43.6]}
15... Be4 {[%clk 0:01:47.6]} 16. Bh3 {[%clk 0:02:37.9]} 16... Rc7 {[%clk
0:01:39.6]} 17. Nc5 {[%clk 0:02:33]} 17... Bf5 {[%clk 0:01:05.7]} 18. Bxf5
{[%clk 0:02:29.5]} 18... gxf5 {[%clk 0:01:05.2]} 19. Qf3 {[%clk 0:02:17.7]}
19... Qc8 {[%clk 0:01:04.5]} 20. Bxf6 {[%clk 0:02:09.4]} 20... Bxf6 {[%clk
0:01:04]} 21. Rc2 {[%clk 0:02:08]} 21... d4 {[%clk 0:00:51.1]} 22. exd4 {[%clk
0:02:05]} 22... Bxd4 {[%clk 0:00:50.2]} 23. Rd1 {[%clk 0:02:00]} 23... Bg7
{[%clk 0:00:38.4]} 24. Kg2 {[%clk 0:01:54.7]} 24... Rce7 {[%clk 0:00:30.9]} 25.
Rd6 {[%clk 0:01:39.7]} 25... f4 {[%clk 0:00:25.8]} 26. Qxf4 {[%clk 0:01:26.8]}
26... Be5 {[%clk 0:00:16.9]} 27. Qg5+ {[%clk 0:01:26.3]} 27... Kh8 {[%clk
0:00:16.6]} 28. Rd3 {[%clk 0:01:23.5]} 28... f6 {[%clk 0:00:12.1]} 29. Qh5
{[%clk 0:01:18.9]} 29... Rg8 {[%clk 0:00:07.4]} 30. Ne4 {[%clk 0:01:13.2]} 30...
Qe6 {[%clk 0:00:05.3]} 31. Qf3 {[%clk 0:01:11.9]} 31... f5 {[%clk 0:00:03.2]}
32. Nc5 {[%clk 0:01:09.9]} 32... Qg6 {[%clk 0:00:02.2]} 33. Re2 {[%clk
0:01:10.2]} 33... f4 {[%clk 0:00:01.6]} 34. Rd7 {[%clk 0:01:04.4]} 1-0

[Event "*** SCC Grand Prix: Titled Tuesday Blitz"]
[Site "Chess.com"]
[Date "2020.06.02"]
[Round "1"]
[White "Iljushin_Alexey"]
[Black "MariaFominykh"]
[Result "1-0"]
[WhiteElo "2657"]
[BlackElo "2320"]
[TimeControl "180+1"]
[EndTime "10:06:38 PDT"]
[Termination "Iljushin_Alexey won on time"]

1. d4 {[%clk 0:03:00.9]} 1... Nf6 {[%clk 0:02:58.7]} 2. c4 {[%clk 0:03:00.9]}
2... g6 {[%clk 0:02:58.9]} 3. Nc3 {[%clk 0:03:00.4]} 3... Bg7 {[%clk 0:02:59.5]}
4. Nf3 {[%clk 0:03:01]} 4... O-O {[%clk 0:02:58.4]} 5. Bf4 {[%clk 0:03:01.6]}
5... d6 {[%clk 0:02:58.3]} 6. e3 {[%clk 0:03:02.1]} 6... Nbd7 {[%clk 0:02:53.2]}
7. h3 {[%clk 0:03:02.1]} 7... b6 {[%clk 0:02:52]} 8. Be2 {[%clk 0:03:02.2]} 8...
Bb7 {[%clk 0:02:52.2]} 9. O-O {[%clk 0:03:00.4]} 9... Re8 {[%clk 0:02:48.2]} 10.
Bh2 {[%clk 0:02:56.4]} 10... Ne4 {[%clk 0:02:42.8]} 11. Rc1 {[%clk 0:02:54.1]}
11... Nxc3 {[%clk 0:02:35.9]} 12. Rxc3 {[%clk 0:02:54]} 12... e5 {[%clk
0:02:35.7]} 13. Rc1 {[%clk 0:02:54.1]} 13... a5 {[%clk 0:02:25.1]} 14. b3 {[%clk
0:02:53.9]} 14... Qe7 {[%clk 0:02:21.2]} 15. Re1 {[%clk 0:02:48.2]} 15... h6
{[%clk 0:01:29.5]} 16. d5 {[%clk 0:02:47.3]} 16... f5 {[%clk 0:01:28]} 17. a3
{[%clk 0:02:41.8]} 17... g5 {[%clk 0:01:11.1]} 18. Nd2 {[%clk 0:02:41.2]} 18...
e4 {[%clk 0:01:04.6]} 19. b4 {[%clk 0:02:32.1]} 19... Bb2 {[%clk 0:01:00.3]} 20.
Rb1 {[%clk 0:02:14.6]} 20... Bxa3 {[%clk 0:00:58.6]} 21. bxa5 {[%clk 0:02:14.6]}
21... Rxa5 {[%clk 0:00:57.1]} 22. Nb3 {[%clk 0:02:15.2]} 22... Raa8 {[%clk
0:00:52.1]} 23. Nd4 {[%clk 0:02:15.8]} 23... Bc5 {[%clk 0:00:38.2]} 24. Nxf5
{[%clk 0:02:13]} 24... Qf6 {[%clk 0:00:37.2]} 25. Nd4 {[%clk 0:02:02.4]} 25...
Rf8 {[%clk 0:00:35.8]} 26. Rf1 {[%clk 0:02:00.8]} 26... Bxd4 {[%clk 0:00:25.3]}
27. exd4 {[%clk 0:02:00.3]} 27... Rf7 {[%clk 0:00:23.1]} 28. Qd2 {[%clk
0:01:59.3]} 28... Raf8 {[%clk 0:00:21.3]} 29. Bg4 {[%clk 0:01:58.6]} 29... Kh8
{[%clk 0:00:19.7]} 30. Rfe1 {[%clk 0:01:52]} 30... Ba6 {[%clk 0:00:18.9]} 31.
Rbc1 {[%clk 0:01:50.7]} 31... Nb8 {[%clk 0:00:18.3]} 32. Bg3 {[%clk 0:01:46.8]}
32... Qg6 {[%clk 0:00:18.1]} 33. Be6 {[%clk 0:01:45.4]} 33... Rf6 {[%clk
0:00:17.1]} 34. Qe3 {[%clk 0:01:42]} 34... Rxe6 {[%clk 0:00:08.1]} 35. dxe6
{[%clk 0:01:40.6]} 35... Qxe6 {[%clk 0:00:08.7]} 36. Qxe4 {[%clk 0:01:39.5]}
36... Qxe4 {[%clk 0:00:08]} 37. Rxe4 {[%clk 0:01:39.2]} 37... Nc6 {[%clk
0:00:08.7]} 38. d5 {[%clk 0:01:37.7]} 38... Na5 {[%clk 0:00:08.4]} 39. Re7
{[%clk 0:01:35.6]} 39... Bxc4 {[%clk 0:00:07.4]} 40. Rxc7 {[%clk 0:01:34.9]}
40... Bxd5 {[%clk 0:00:07.3]} 41. Bxd6 {[%clk 0:01:34.3]} 41... Rf7 {[%clk
0:00:07.3]} 42. Rxf7 {[%clk 0:01:32.3]} 42... Bxf7 {[%clk 0:00:08.2]} 43. Bc7
{[%clk 0:01:30.9]} 43... Nc4 {[%clk 0:00:07.8]} 44. Rb1 {[%clk 0:01:29.6]} 44...
Kg7 {[%clk 0:00:04.6]} 45. Bxb6 {[%clk 0:01:28.9]} 45... Nd2 {[%clk 0:00:04.1]}
46. Bd4+ {[%clk 0:01:28.9]} 46... Kg6 {[%clk 0:00:02.8]} 47. Rb6+ {[%clk
0:01:28.2]} 1-0

[Event "*** SCC Grand Prix: Titled Tuesday Blitz"]
[Site "Chess.com"]
[Date "2020.06.02"]
[Round "1"]
[White "Azatic"]
[Black "SergeyKarjakin"]
[Result "0-1"]
[WhiteElo "2438"]
[BlackElo "2930"]
[TimeControl "180+1"]
[EndTime "10:06:39 PDT"]
[Termination "SergeyKarjakin won by resignation"]

1. e4 {[%clk 0:02:56]} 1... e5 {[%clk 0:02:58.3]} 2. Nf3 {[%clk 0:02:54.2]} 2...
Nc6 {[%clk 0:02:58.8]} 3. Bb5 {[%clk 0:02:54.3]} 3... a6 {[%clk 0:02:58.8]} 4.
Ba4 {[%clk 0:02:53.9]} 4... Nge7 {[%clk 0:02:55.4]} 5. O-O {[%clk 0:02:53.1]}
5... g6 {[%clk 0:02:55.5]} 6. c3 {[%clk 0:02:51.9]} 6... Bg7 {[%clk 0:02:52.9]}
7. d4 {[%clk 0:02:52.3]} 7... b5 {[%clk 0:02:52.8]} 8. Bb3 {[%clk 0:02:52.3]}
8... exd4 {[%clk 0:02:52.1]} 9. cxd4 {[%clk 0:02:52]} 9... O-O {[%clk
0:02:48.4]} 10. Nc3 {[%clk 0:02:50.9]} 10... d6 {[%clk 0:02:47.7]} 11. h3 {[%clk
0:02:50.8]} 11... Na5 {[%clk 0:02:44.1]} 12. Bc2 {[%clk 0:02:50.5]} 12... c5
{[%clk 0:02:39.4]} 13. dxc5 {[%clk 0:01:50.2]} 13... dxc5 {[%clk 0:02:40.3]} 14.
e5 {[%clk 0:01:50.4]} 14... Bb7 {[%clk 0:02:33]} 15. Qe2 {[%clk 0:01:39.1]}
15... Nac6 {[%clk 0:02:24.6]} 16. Bg5 {[%clk 0:01:35.3]} 16... h6 {[%clk
0:02:19.1]} 17. Rad1 {[%clk 0:01:26.2]} 17... Qc7 {[%clk 0:02:13.4]} 18. Bf6
{[%clk 0:01:23.7]} 18... Rad8 {[%clk 0:02:08.6]} 19. Ne4 {[%clk 0:01:21.3]}
19... Nb4 {[%clk 0:02:02.2]} 20. Bb1 {[%clk 0:01:14.7]} 20... Bxe4 {[%clk
0:01:57.3]} 21. Qxe4 {[%clk 0:01:09.8]} 21... Bxf6 {[%clk 0:01:37.8]} 22. exf6
{[%clk 0:01:10.7]} 22... Ned5 {[%clk 0:01:38.5]} 23. Qh4 {[%clk 0:00:52.1]}
23... Qf4 {[%clk 0:01:37.9]} 24. a3 {[%clk 0:00:35.8]} 24... Qxh4 {[%clk
0:01:36.6]} 25. Nxh4 {[%clk 0:00:36.2]} 25... Nc6 {[%clk 0:01:37.5]} 26. Be4
{[%clk 0:00:36.1]} 26... Nd4 {[%clk 0:01:36.4]} 27. Bxd5 {[%clk 0:00:24.8]}
27... Rxd5 {[%clk 0:01:37.3]} 28. Rfe1 {[%clk 0:00:20.5]} 28... Rfd8 {[%clk
0:01:35.3]} 29. Kf1 {[%clk 0:00:14.7]} 29... g5 {[%clk 0:01:25.6]} 30. Nf3
{[%clk 0:00:09.6]} 30... Nxf3 {[%clk 0:01:24.2]} 31. Rxd5 {[%clk 0:00:09.5]}
31... Rxd5 {[%clk 0:01:22.3]} 32. Re8+ {[%clk 0:00:09.2]} 32... Kh7 {[%clk
0:01:21]} 33. gxf3 {[%clk 0:00:10.1]} 33... Kg6 {[%clk 0:01:18]} 34. Ra8 {[%clk
0:00:09.4]} 34... Rd6 {[%clk 0:01:17.8]} 35. Rc8 {[%clk 0:00:09.7]} 35... c4
{[%clk 0:01:17.7]} 36. Ke2 {[%clk 0:00:10]} 36... Re6+ {[%clk 0:01:16.6]} 37.
Kd2 {[%clk 0:00:10.3]} 37... Rxf6 {[%clk 0:01:17.5]} 38. Ke3 {[%clk 0:00:10.5]}
38... Rd6 {[%clk 0:01:16.3]} 39. Rg8+ {[%clk 0:00:07.7]} 39... Kh5 {[%clk
0:01:15.7]} 40. Ra8 {[%clk 0:00:08.6]} 40... Kh4 {[%clk 0:01:15]} 41. f4 {[%clk
0:00:08.9]} 41... Re6+ {[%clk 0:01:11.3]} 42. Kf3 {[%clk 0:00:08.3]} 42... Rf6
{[%clk 0:01:11.5]} 0-1

[Event "*** SCC Grand Prix: Titled Tuesday Blitz"]
[Site "Chess.com"]
[Date "2020.06.02"]
[Round "1"]
[White "saisree"]
[Black "superchess02"]
[Result "0-1"]
[WhiteElo "2354"]
[BlackElo "2710"]
[TimeControl "180+1"]
[EndTime "10:06:39 PDT"]
[Termination "superchess02 won by checkmate"]

1. e4 {[%clk 0:03:00.9]} 1... e5 {[%clk 0:02:59.5]} 2. Nf3 {[%clk 0:03:00.4]}
2... Nc6 {[%clk 0:02:58.2]} 3. Bc4 {[%clk 0:02:59.6]} 3... Bc5 {[%clk
0:02:57.4]} 4. c3 {[%clk 0:02:58.3]} 4... Nf6 {[%clk 0:02:56.8]} 5. d3 {[%clk
0:02:57.5]} 5... h6 {[%clk 0:02:56]} 6. O-O {[%clk 0:02:55.6]} 6... d6 {[%clk
0:02:55.5]} 7. h3 {[%clk 0:02:54.4]} 7... a6 {[%clk 0:02:54.7]} 8. Bb3 {[%clk
0:02:53.2]} 8... Ba7 {[%clk 0:02:54.3]} 9. Nbd2 {[%clk 0:02:51.6]} 9... g5
{[%clk 0:02:52.7]} 10. Nc4 {[%clk 0:02:04]} 10... g4 {[%clk 0:02:39.2]} 11. hxg4
{[%clk 0:02:03.9]} 11... Nxg4 {[%clk 0:02:40.1]} 12. d4 {[%clk 0:01:59.5]} 12...
Qf6 {[%clk 0:02:37.8]} 13. dxe5 {[%clk 0:01:51.8]} 13... dxe5 {[%clk 0:02:36.7]}
14. Ne3 {[%clk 0:01:52.5]} 14... Rg8 {[%clk 0:02:12.6]} 15. Nd5 {[%clk
0:01:37.8]} 15... Qg6 {[%clk 0:02:12.5]} 16. Nxc7+ {[%clk 0:01:22]} 16... Kf8
{[%clk 0:02:12.2]} 17. Ne1 {[%clk 0:01:16.7]} 17... Qh5 {[%clk 0:01:09.4]} 18.
Nf3 {[%clk 0:00:56.8]} 18... Nxf2 {[%clk 0:00:29.2]} 19. Rxf2 {[%clk 0:00:56.9]}
19... Rxg2+ {[%clk 0:00:27.2]} 20. Kxg2 {[%clk 0:00:46]} 20... Qh3+ {[%clk
0:00:20]} 21. Kg1 {[%clk 0:00:46.7]} 21... Qg3+ {[%clk 0:00:20.6]} 22. Kh1
{[%clk 0:00:47.4]} 22... Bxf2 {[%clk 0:00:18.3]} 23. Qd6+ {[%clk 0:00:36.1]}
23... Kg8 {[%clk 0:00:17.4]} 24. Bxh6 {[%clk 0:00:19.4]} 24... Qxf3+ {[%clk
0:00:15.4]} 25. Kh2 {[%clk 0:00:18.1]} 25... Qg3+ {[%clk 0:00:15.6]} 26. Kh1
{[%clk 0:00:18.4]} 26... Qh3# {[%clk 0:00:16.1]} 0-1

[Event "*** SCC Grand Prix: Titled Tuesday Blitz"]
[Site "Chess.com"]
[Date "2020.06.02"]
[Round "1"]
[White "GothamChess"]
[Black "PowerThinking2650"]
[Result "1-0"]
[WhiteElo "2593"]
[BlackElo "2254"]
[TimeControl "180+1"]
[EndTime "10:06:44 PDT"]
[Termination "GothamChess won on time"]

1. e4 {[%clk 0:02:58.9]} 1... e5 {[%clk 0:02:53.7]} 2. Nc3 {[%clk 0:02:56]} 2...
Nf6 {[%clk 0:02:49.7]} 3. f4 {[%clk 0:02:55.8]} 3... d5 {[%clk 0:02:40.3]} 4.
fxe5 {[%clk 0:02:56]} 4... Nxe4 {[%clk 0:02:38.4]} 5. Qf3 {[%clk 0:02:56.3]}
5... Nc6 {[%clk 0:02:12.5]} 6. Bb5 {[%clk 0:02:56]} 6... Nxc3 {[%clk 0:01:24.9]}
7. dxc3 {[%clk 0:02:53]} 7... Qh4+ {[%clk 0:01:23]} 8. g3 {[%clk 0:02:53.3]}
8... Qe4+ {[%clk 0:01:21.5]} 9. Be3 {[%clk 0:02:53.6]} 9... Qxf3 {[%clk
0:01:15.5]} 10. Nxf3 {[%clk 0:02:53.8]} 10... Bh3 {[%clk 0:01:03.9]} 11. Ng5
{[%clk 0:02:39]} 11... Bg4 {[%clk 0:00:59]} 12. Rf1 {[%clk 0:02:24.6]} 12... Bh5
{[%clk 0:00:45.9]} 13. g4 {[%clk 0:02:24.3]} 13... Bg6 {[%clk 0:00:38.6]} 14.
O-O-O {[%clk 0:02:23.7]} 14... a6 {[%clk 0:00:35.3]} 15. Ba4 {[%clk 0:02:11.4]}
15... h6 {[%clk 0:00:31.5]} 16. Nh3 {[%clk 0:01:18.1]} 16... O-O-O {[%clk
0:00:31.1]} 17. Bxc6 {[%clk 0:01:13.8]} 17... bxc6 {[%clk 0:00:30.8]} 18. Nf4
{[%clk 0:01:14.7]} 18... Be4 {[%clk 0:00:22.8]} 19. Nh5 {[%clk 0:01:12.5]} 19...
Re8 {[%clk 0:00:19.1]} 20. Bf4 {[%clk 0:01:07.8]} 20... Bg2 {[%clk 0:00:15.3]}
21. Rg1 {[%clk 0:01:02.2]} 21... Bf3 {[%clk 0:00:14.4]} 22. Rde1 {[%clk
0:01:02.8]} 22... Rg8 {[%clk 0:00:12.2]} 23. h3 {[%clk 0:00:59.4]} 23... Be7
{[%clk 0:00:10.2]} 24. Ng3 {[%clk 0:00:46.8]} 24... Bh4 {[%clk 0:00:09]} 25. Re3
{[%clk 0:00:44.4]} 25... Bxg3 {[%clk 0:00:07.5]} 26. Bxg3 {[%clk 0:00:39.7]}
26... Be4 {[%clk 0:00:07.3]} 27. c4 {[%clk 0:00:40.3]} 27... Re7 {[%clk
0:00:05.1]} 28. Rge1 {[%clk 0:00:39.8]} 28... Rge8 {[%clk 0:00:04.6]} 29. Ra3
{[%clk 0:00:38.2]} 29... Kb7 {[%clk 0:00:04.3]} 30. Ree3 {[%clk 0:00:38.9]}
30... Ra8 {[%clk 0:00:02.7]} 31. Kd2 {[%clk 0:00:35.6]} 31... Kc8 {[%clk
0:00:02.2]} 32. Ra5 {[%clk 0:00:35.4]} 1-0

[Event "*** SCC Grand Prix: Titled Tuesday Blitz"]
[Site "Chess.com"]
[Date "2020.06.02"]
[Round "1"]
[White "bascheyaro"]
[Black "ErikRonka"]
[Result "1-0"]
[WhiteElo "2743"]
[BlackElo "2381"]
[TimeControl "180+1"]
[EndTime "10:06:45 PDT"]
[Termination "bascheyaro won by checkmate"]

1. d4 {[%clk 0:02:58.1]} 1... d5 {[%clk 0:02:50.2]} 2. Nf3 {[%clk 0:02:58.2]}
2... Nf6 {[%clk 0:02:48]} 3. c4 {[%clk 0:02:58]} 3... c6 {[%clk 0:02:48.3]} 4.
Nc3 {[%clk 0:02:57.8]} 4... e6 {[%clk 0:02:48.4]} 5. Bg5 {[%clk 0:02:57.9]} 5...
dxc4 {[%clk 0:02:48.2]} 6. e3 {[%clk 0:02:58]} 6... b5 {[%clk 0:02:48.3]} 7. Ne5
{[%clk 0:02:58.2]} 7... Bb7 {[%clk 0:02:40]} 8. Be2 {[%clk 0:02:57.1]} 8... Be7
{[%clk 0:02:39]} 9. Bf3 {[%clk 0:02:56.9]} 9... a6 {[%clk 0:02:36.6]} 10. a4
{[%clk 0:02:53.2]} 10... Qb6 {[%clk 0:02:35]} 11. O-O {[%clk 0:02:42.4]} 11...
O-O {[%clk 0:02:34.2]} 12. b3 {[%clk 0:02:39.6]} 12... cxb3 {[%clk 0:02:31.2]}
13. Qxb3 {[%clk 0:02:39.4]} 13... h6 {[%clk 0:02:26.4]} 14. Bh4 {[%clk
0:02:38.9]} 14... Re8 {[%clk 0:02:13.5]} 15. Rfb1 {[%clk 0:02:16.8]} 15... Nbd7
{[%clk 0:02:06.9]} 16. Nxd7 {[%clk 0:01:46.7]} 16... Nxd7 {[%clk 0:02:06.5]} 17.
Bxe7 {[%clk 0:01:47.5]} 17... Rxe7 {[%clk 0:02:07]} 18. axb5 {[%clk 0:01:47.9]}
18... cxb5 {[%clk 0:01:53.2]} 19. Nxb5 {[%clk 0:01:43.4]} 19... Bxf3 {[%clk
0:01:40.6]} 20. gxf3 {[%clk 0:01:43]} 20... Rb8 {[%clk 0:01:38.9]} 21. Qa3
{[%clk 0:01:42.8]} 21... Ree8 {[%clk 0:01:27.2]} 22. Nc3 {[%clk 0:01:42.3]}
22... Qc7 {[%clk 0:01:24.2]} 23. Ne4 {[%clk 0:01:40.8]} 23... f5 {[%clk
0:01:07.5]} 24. Rc1 {[%clk 0:01:23.8]} 24... Qb6 {[%clk 0:01:06.3]} 25. Nd6
{[%clk 0:01:19.1]} 25... Rf8 {[%clk 0:01:05.1]} 26. Qxa6 {[%clk 0:01:18.6]}
26... Qd8 {[%clk 0:00:32.2]} 27. f4 {[%clk 0:01:10.4]} 27... Rb6 {[%clk
0:00:31.4]} 28. Qa3 {[%clk 0:01:10.5]} 28... g5 {[%clk 0:00:28]} 29. Nc4 {[%clk
0:01:04.4]} 29... Rb8 {[%clk 0:00:22.1]} 30. fxg5 {[%clk 0:01:00.8]} 30... hxg5
{[%clk 0:00:18.7]} 31. Ne5 {[%clk 0:00:52.7]} 31... Nxe5 {[%clk 0:00:18.1]} 32.
dxe5 {[%clk 0:00:53.6]} 32... f4 {[%clk 0:00:17.5]} 33. e4 {[%clk 0:00:48.3]}
33... Qd4 {[%clk 0:00:16.6]} 34. Qe7 {[%clk 0:00:44.2]} 34... Rbe8 {[%clk
0:00:15.2]} 35. Qxg5+ {[%clk 0:00:43.4]} 35... Kh7 {[%clk 0:00:14.7]} 36. Rc7+
{[%clk 0:00:41.4]} 36... Kh8 {[%clk 0:00:12.3]} 37. Qg7# {[%clk 0:00:40.2]} 1-0